bitfinex/quotes_ETHUSD_20220226
["timestamp","ask_amount","ask_price","bid_price","bid_amount"]
[1645896757308,1.51589585,2787.4,2787.1,8.27369819]
[1645896757754,1.51589585,2787.4,2787.2,0.0028446]
[1645896758149,3.5,2787.3,2787.2,0.0028446]
[1645896758347,1.51589585,2787.3,2787.2,0.0028446]
[1645896758547,1.51589585,2787.3,2787.1,8.27369819]
[1645896758848,1.51589585,2787.3,2787.1,8.27654284]
[1645896759252,0.1431,2787.7,2787.1,8.27654284]
[1645896759450,2.54629113,2787.8,2787.1,8.27654284]
[1645896759451,1.51601653,2787.6,2787.1,8.27654284]
[1645896759748,1.51601653,2787.5,2787.1,8.27369819]
[1645896759952,0.54629113,2787.8,2787.1,8.27369819]
[1645896760147,1.51595652,2787.7,2787.2,0.00503621]
[1645896760748,1.51595652,2787.7,2787.2,1.24554141]
[1645896760947,1.51595652,2787.7,2787.2,1.2405052]
[1645896761247,1.51595652,2787.7,2787.3,0.00503611]
[1645896762308,1.51595652,2787.7,2787.6,1.27820535]
[1645896762512,1.51595652,2787.7,2787.4,0.00503606]
[1645896763507,1.51595652,2787.7,2787.3,1.29596976]
[1645896763710,1.51595652,2787.7,2787.4,0.005036]
[1645896764110,1.51595652,2787.7,2787.3,1.29048891]
[1645896765347,1.51595652,2787.7,2787.3,1.64868891]
[1645896765549,8.9527,2788.1,2787.3,0.3582]
[1645896765550,8.8096,2788.1,2787.3,0.3582]
[1645896765753,1.51586501,2788.0,2787.2,0.00370622]
[1645896765951,1.41586501,2788.0,2787.2,0.00370622]
[1645896766149,5.5755,2788.1,2787.3,0.00284111]
[1645896767151,5.5755,2788.1,2787.2,0.00370622]
[1645896767351,3.5,2788.0,2787.3,0.00284111]
[1645896767657,5.5755,2788.1,2787.3,0.00284111]
[1645896767658,5.8755,2788.1,2787.3,0.00284111]
[1645896767850,5.5755,2788.1,2787.3,0.00284111]
[1645896768249,5.5755,2788.1,2787.2,0.00370622]
[1645896768250,3.5,2788.0,2787.2,0.00370622]
[1645896768452,3.5,2788.0,2787.3,0.00503639]
[1645896769499,3.5,2788.0,2787.2,0.00370622]
[1645896769699,3.5,2788.0,2787.3,0.00503635]
[1645896769700,15.21817879,2788.0,2787.3,0.00503635]
[1645896769901,5.0,2787.7,2787.3,0.00503635]
[1645896770099,3.5,2787.6,2787.3,0.00503635]
[1645896770305,4.5,2787.6,2787.3,0.00503635]
[1645896770699,4.5,2787.6,2787.1,8.27369819]
[1645896770904,4.5,2787.6,2787.3,0.0050362]
[1645896771300,6.19769,2787.5,2787.3,0.0050362]
[1645896771505,3.5,2787.4,2787.3,0.0050362]
[1645896771710,4.9238,2787.4,2787.3,0.0050362]
[1645896771907,4.9238,2787.4,2786.8,0.00370622]
[1645896771908,5.9238,2787.4,2786.8,0.00370622]
[1645896772107,5.0,2787.1,2786.8,0.02014786]
[1645896772414,5.0,2786.9,2786.8,4.786e-05]
[1645896772611,12.5,2786.8,2786.1,0.00370622]
[1645896772868,5.0,2786.6,2785.9,0.00370622]
[1645896773059,12.5,2786.5,2785.6,0.04974852]
[1645896773262,12.5,2786.5,2785.5,7.36]
[1645896773263,1.0,2786.6,2786.1,1.37392195]
[1645896773461,2.0,2787.0,2786.2,3.5]
[1645896773666,0.67388782,2787.5,2786.8,1.09977524]
[1645896773863,0.67388782,2787.6,2786.9,3.5]
[1645896774061,0.67388782,2787.6,2786.3,1.7117]
[1645896774263,0.67388782,2787.6,2786.3,4.3016]
[1645896774462,0.67388782,2787.6,2786.3,5.3016]
[1645896774663,0.67388782,2787.6,2786.7,0.0024975]
[1645896774863,0.97388782,2787.6,2786.7,0.0024975]
[1645896775263,0.97388782,2787.6,2786.8,1.06156487]
[1645896775861,0.67388782,2787.6,2786.8,1.01156487]
[1645896776063,0.67388782,2787.7,2787.3,1.07863205]
[1645896776264,1.67388782,2787.8,2787.3,1.07863205]
[1645896776519,1.0,2787.8,2786.9,0.3582]
[1645896776722,0.3,2787.9,2786.9,0.3582]
[1645896776924,0.00221372,2787.7,2787.0,3.5]
[1645896777230,0.00221372,2787.7,2786.6,0.1434]
[1645896777424,0.00221372,2787.7,2786.5,1.0062429]
[1645896777622,0.30221372,2787.7,2786.5,1.0062429]
[1645896777824,0.3,2787.7,2786.8,1.12412043]
[1645896778027,0.97388782,2787.8,2786.8,1.12412043]
[1645896778226,0.00476898,2787.2,2786.8,1.12412043]
[1645896778627,0.00476898,2787.2,2786.8,1.48232043]
[1645896778825,0.00476898,2787.2,2786.8,1.62572043]
[1645896779125,0.67388782,2788.0,2787.6,1.2569346]
[1645896779327,0.67388782,2788.1,2787.6,1.2569346]
[1645896779523,3.1331,2788.2,2787.6,1.2569346]
[1645896779524,2.67388782,2788.2,2787.6,1.2569346]
[1645896779725,0.67388782,2788.2,2787.6,1.2569346]
[1645896780126,0.67388782,2788.2,2788.1,1.28040115]
[1645896780369,0.67388782,2788.2,2787.7,3.50369065]
[1645896780573,0.00476824,2788.0,2787.5,0.3582]
[1645896780869,0.00476824,2788.0,2787.6,3.5]
[1645896781269,0.00476824,2788.0,2787.6,5.21574]
[1645896781476,4.13083211,2789.0,2787.7,0.516]
[1645896781477,0.1414,2788.7,2787.7,0.516]
[1645896781671,2.80471993,2789.0,2788.6,1.20664946]
[1645896781672,0.1411,2788.9,2788.6,1.20664946]
[1645896781870,0.1411,2788.9,2788.7,3.5]
[1645896782171,0.1411,2788.9,2788.6,1.20664946]
[1645896782873,0.1411,2788.9,2788.4,3.5]
[1645896783077,0.1411,2788.9,2788.2,3.5]
[1645896783078,0.14578507,2788.9,2788.2,3.5]
[1645896783273,0.14578507,2788.9,2787.9,0.00369065]
[1645896783474,0.14578507,2788.9,2787.9,0.36189065]
[1645896783672,0.14578507,2788.9,2788.0,3.8582]
[1645896783873,0.1411,2788.9,2788.3,1.25738971]
[1645896784301,0.00468538,2788.5,2788.3,1.30325723]
[1645896785202,0.67388782,2788.8,2788.3,1.30325723]
[1645896785405,0.00468538,2788.5,2788.3,1.30325723]
[1645896786200,1.51066264,2788.4,2788.3,1.30325723]
[1645896786504,1.51066264,2788.4,2787.9,0.3582]
[1645896787505,1.51066264,2788.4,2788.0,1.13438038]
[1645896787771,1.51287975,2788.3,2788.0,1.13438038]
[1645896787959,1.51066264,2788.2,2788.0,1.13438038]
[1645896788165,0.00221711,2788.3,2788.0,1.13438038]
[1645896788762,0.67388782,2788.7,2787.8,0.3]
[1645896789062,0.67388782,2788.7,2787.7,1.0]
[1645896789063,0.00221711,2788.3,2787.7,1.0]
[1645896789459,0.00221711,2788.3,2787.6,0.6]
[1645896789962,1.51066264,2788.5,2787.9,1.12708172]
[1645896790162,0.00501551,2788.1,2787.9,1.12708172]
[1645896790363,0.00501551,2788.1,2787.9,1.42708172]
[1645896790364,1.51066264,2788.0,2787.9,1.42708172]
[1645896790965,0.00501551,2788.1,2787.9,1.42708172]
[1645896791166,0.67388782,2788.5,2787.9,1.42708172]
[1645896791167,1.51066264,2788.0,2787.9,1.42708172]
[1645896791367,1.51066264,2788.0,2787.9,0.6582]
[1645896791626,0.00501551,2788.1,2788.0,1.31018667]
[1645896792109,1.51772737,2788.1,2788.0,1.31018667]
[1645896792309,1.51271186,2788.1,2788.0,1.31018667]
[1645896792509,0.00501541,2788.2,2788.0,1.31018667]
[1645896792715,1.51271186,2788.1,2788.0,1.31018667]
[1645896793115,1.51271186,2788.1,2787.7,0.00367183]
[1645896793323,1.51271186,2788.1,2787.8,0.3]
[1645896793516,1.51271186,2788.1,2787.5,1.30367183]
[1645896793716,1.51271186,2788.0,2787.5,0.3]
[1645896793918,1.51271186,2787.9,2787.5,0.3]
[1645896794318,1.51271186,2787.9,2787.7,1.16911231]
[1645896794516,1.51271186,2787.9,2787.3,0.00367183]
[1645896794917,1.51271186,2787.8,2787.3,0.00367183]
[1645896795279,1.51271186,2787.7,2787.2,0.6582]
[1645896795473,1.51271186,2787.6,2787.5,1.32451339]
[1645896795772,1.51271186,2787.6,2787.5,1.62451339]
[1645896795978,1.51271186,2787.8,2787.5,1.62451339]
[1645896796173,0.00501591,2787.7,2787.5,0.3]
[1645896796372,0.00501591,2787.7,2787.5,0.30367183]
[1645896796579,1.51332335,2787.6,2787.5,0.3]
[1645896796776,1.51332335,2787.6,2787.2,0.3582]
[1645896796777,1.51332335,2787.6,2787.2,0.66187183]
[1645896796979,1.51332335,2787.6,2787.2,0.6582]
[1645896797378,0.00501606,2787.5,2787.3,1.27291209]
[1645896797584,0.00501606,2787.5,2787.3,1.27658392]
[1645896797778,0.00501606,2787.5,2787.3,1.57291209]
[1645896798379,0.67388782,2788.4,2787.3,1.57291209]
[1645896798582,0.00501606,2787.5,2787.4,0.00367183]
[1645896798779,0.00501606,2787.5,2787.3,1.57291209]
[1645896799603,0.67388782,2788.4,2787.3,1.57291209]
[1645896799809,0.00501606,2787.5,2787.4,0.00367183]
[1645896800009,0.00501606,2787.5,2787.3,1.57291209]
[1645896800808,0.67388782,2788.4,2787.3,1.57291209]
[1645896801008,2.18662118,2788.4,2787.9,1.30603859]
[1645896801212,1.51273336,2788.3,2787.9,1.30603859]
[1645896801408,1.51273336,2788.2,2787.4,0.00367183]
[1645896801607,1.51273336,2788.2,2787.4,0.30367183]
[1645896801806,1.51273336,2788.2,2787.4,0.00367183]
[1645896802011,1.51273336,2788.1,2787.4,0.00367183]
[1645896802209,0.00501566,2787.9,2787.2,0.00367183]
[1645896802410,0.00501566,2787.9,2787.3,0.3582]
[1645896802612,1.51273336,2787.8,2787.4,0.516]
[1645896802872,1.51273336,2787.8,2787.4,1.58651366]
[1645896803273,0.67388782,2788.5,2787.4,1.58651366]
[1645896803470,0.67388782,2788.5,2788.3,1.04364953]
[1645896803670,0.67388782,2788.5,2787.6,0.00367183]
[1645896804272,1.51217464,2788.6,2787.6,0.00367183]
[1645896804273,1.51217464,2788.4,2787.6,0.00367183]
[1645896804576,0.00501541,2788.2,2788.0,1.01725294]
[1645896804878,0.59958703,2787.7,2787.6,0.00367183]
[1645896805075,0.59958703,2787.7,2787.6,1.15995869]
[1645896805475,0.59958703,2787.7,2787.6,1.51815869]
[1645896805976,0.59958703,2787.7,2787.6,1.15995869]
[1645896806175,0.59958703,2787.7,2787.6,1.67595869]
[1645896806813,0.59958703,2787.7,2787.6,2.03415869]
[1645896807614,0.59958703,2787.7,2787.6,1.67595869]
[1645896807814,0.59958703,2787.7,2787.6,1.75174876]
[1645896808013,0.59958703,2787.7,2787.6,2.10994876]
[1645896808413,0.59958703,2787.7,2787.6,1.75174876]
[1645896809722,0.59958703,2787.7,2787.6,1.67595869]
[1645896810676,0.59958703,2787.7,2787.6,1.75174937]
[1645896813480,0.59958703,2787.7,2787.6,1.67595869]
[1645896814100,0.59958703,2787.7,2787.6,1.15995869]
[1645896815904,0.59958703,2787.7,2787.6,1.23574802]
[1645896819257,2.09358773,2787.7,2787.6,1.23574802]
[1645896819857,0.59958703,2787.7,2787.6,1.23574802]
[1645896821157,0.59958703,2787.7,2787.6,1.13574802]
[1645896821356,2.09564524,2787.7,2787.6,1.13574802]
[1645896821610,2.09564524,2787.7,2787.6,1.65174802]
[1645896821611,0.59958703,2787.7,2787.6,1.65174802]
[1645896822307,2.09602324,2787.7,2787.6,1.65174802]
[1645896824810,2.09661131,2787.7,2787.6,1.65174802]
[1645896825012,2.09649318,2787.7,2787.6,1.65174802]
[1645896825254,2.09637577,2787.7,2787.6,1.65174802]
[1645896825455,0.59958703,2787.7,2787.6,1.65174802]
[1645896825858,2.09598151,2787.7,2787.6,1.65174802]
[1645896826057,0.59958703,2787.7,2787.6,1.65174802]
[1645896826465,2.09584055,2787.7,2787.6,1.65174802]
[1645896826660,0.59958703,2787.7,2787.6,1.65174802]
[1645896826860,2.09567617,2787.7,2787.6,1.65174802]
[1645896827060,0.59958703,2787.7,2787.6,1.65174802]
[1645896827268,2.09571527,2787.7,2787.6,1.65174802]
[1645896830106,0.67388782,2788.3,2787.8,23.41]
[1645896830310,1.04576723,2788.6,2788.0,10.91]
[1645896830311,0.67388782,2788.5,2788.0,10.91]
[1645896830506,0.67388782,2788.6,2788.1,1.84806531]
[1645896831002,1.04516723,2788.9,2788.1,1.84806531]
[1645896831003,0.67388782,2788.7,2788.1,1.84806531]
[1645896831203,0.67388782,2788.7,2788.6,1.22902604]
[1645896831610,0.67714255,2788.7,2788.6,1.22902604]
[1645896833464,0.67714255,2788.7,2788.4,1.3]
[1645896833667,0.67714255,2788.6,2788.4,1.0]
[1645896833868,0.67714255,2788.5,2788.2,0.516]
[1645896834068,0.67714255,2788.4,2788.0,1.6]
[1645896834264,0.67714255,2788.4,2788.0,1.3]
[1645896834668,0.00500243,2788.3,2788.0,1.3]
[1645896834867,0.00500243,2788.3,2788.1,1.29649914]
[1645896835266,0.00500243,2788.3,2788.0,0.6]
[1645896835667,0.67714255,2788.4,2787.9,0.3]
[1645896835870,0.00467873,2788.3,2787.7,2.3]
[1645896836067,0.00467873,2788.3,2787.7,2.6]
[1645896836504,0.00467873,2788.3,2787.9,1.14680648]
[1645896836707,0.00467873,2788.3,2787.9,1.44680648]
[1645896836908,0.67714255,2788.4,2787.9,1.44680648]
[1645896837910,0.67714255,2788.3,2787.9,1.44680648]
[1645896838310,0.68182469,2788.3,2787.9,1.44680648]
[1645896838714,0.68182469,2788.3,2787.9,1.14680648]
[1645896839211,0.67714255,2788.4,2787.9,1.44680648]
[1645896839410,0.00485753,2788.2,2787.9,1.44680648]
[1645896840011,0.00485753,2788.2,2787.9,3.24066688]
[1645896840284,0.00485753,2788.2,2788.0,0.516]
[1645896840466,5.4963,2788.9,2788.0,11.426]
[1645896840467,0.67714255,2788.7,2788.0,11.426]
[1645896840671,0.00485758,2788.2,2788.1,1.0]
[1645896840971,3.03419934,2789.0,2788.2,23.76334242]
[1645896840972,0.67714255,2788.9,2788.2,23.76334242]
[1645896841165,0.67714255,2788.9,2788.6,11.98026806]
[1645896841367,2.13083211,2789.0,2788.8,15.90514242]
[1645896841579,2.13083211,2789.0,2788.9,11.42114242]
[1645896841773,2.13083211,2789.0,2788.9,1.516]
[1645896841974,2.13083211,2789.0,2788.2,3.36628542]
[1645896841975,2.13083211,2789.0,2788.4,0.516]
[1645896842278,0.67714255,2788.9,2788.5,0.6]
[1645896842476,2.80797466,2789.0,2788.4,1.0]
[1645896842982,0.67714255,2788.9,2788.4,1.3]
[1645896843275,0.00469541,2788.8,2788.5,0.1434]
[1645896844024,2.80797466,2789.0,2788.5,0.1434]
[1645896844222,2.80797466,2789.0,2788.6,1.16154092]
[1645896844522,0.00469546,2788.8,2788.5,0.1434]
[1645896844922,0.00469546,2788.8,2788.4,0.1434]
[1645896845222,2.80797466,2789.0,2788.4,0.1434]
[1645896845423,0.0046955,2788.7,2788.6,1.3627377]
[1645896845821,0.0046955,2788.7,2788.6,1.6627377]
[1645896846422,2.80797466,2789.0,2788.6,1.6627377]
[1645896846627,2.13083211,2789.0,2788.6,1.6627377]
[1645896847028,2.13083211,2789.0,2788.6,2.5594334]
[1645896847226,2.13083211,2789.0,2788.6,2.8594334]
[1645896847426,2.13083211,2789.0,2788.6,2.24292459]
[1645896847627,2.13083211,2789.0,2788.6,1.19292459]
[1645896847864,0.00221521,2788.9,2788.6,1.19292459]
[1645896848763,2.13083211,2789.0,2788.6,1.19292459]
[1645896849269,0.00221521,2788.9,2788.6,1.19292459]
[1645896850166,0.67714255,2789.0,2788.6,1.19292459]
[1645896850366,0.00503086,2788.9,2788.6,1.19292459]
[1645896850568,1.46372893,2788.8,2788.6,1.19292459]
[1645896851366,1.46372893,2788.7,2788.6,1.19292459]
[1645896851608,1.46372893,2788.7,2788.6,1.26870057]
[1645896851806,0.00503091,2788.8,2788.6,1.26870057]
[1645896852006,1.46372893,2788.7,2788.5,1.27379892]
[1645896852207,1.46372893,2788.7,2788.6,0.0757768]
[1645896852408,1.46372893,2788.7,2788.5,0.97379892]
[1645896852607,0.67714255,2789.1,2788.5,0.97379892]
[1645896852807,0.00503101,2788.7,2788.5,0.97379892]
[1645896853010,1.46072612,2788.6,2788.5,0.97379892]
[1645896853208,1.46072612,2788.6,2788.5,2.2127711]
[1645896855259,1.46072612,2788.6,2788.5,2.19619803]
[1645896855756,1.46072612,2788.6,2788.5,1.03300171]
[1645896857561,1.46072612,2788.6,2788.5,2.06595346]
[1645896857762,1.46072612,2788.6,2788.5,3.85940686]
[1645896857963,1.46072612,2788.6,2788.5,4.85940686]
[1645896858364,1.46072612,2788.6,2788.5,6.37540686]
[1645896858566,0.67714255,2789.4,2788.5,6.37540686]
[1645896858768,0.67714255,2789.4,2789.2,1.07182114]
[1645896859002,2.10707527,2789.4,2789.0,1.0]
[1645896859205,1.42993272,2789.3,2789.0,1.0]
[1645896859505,1.42993272,2789.2,2789.0,1.0]
[1645896859704,1.42993272,2789.1,2788.7,0.89665]
[1645896859904,1.42993272,2789.0,2788.8,0.07576874]
[1645896860105,0.00503045,2789.3,2788.9,1.0]
[1645896860305,2.11199096,2789.3,2788.9,1.0]
[1645896860504,1.42981796,2789.2,2788.9,1.0]
[1645896860703,1.42981796,2789.2,2788.7,0.3]
[1645896860903,1.42981796,2789.2,2788.6,0.3]
[1645896861106,1.42981796,2789.1,2788.7,0.07577279]
[1645896861309,1.42981796,2789.1,2788.5,0.97379892]
[1645896861503,1.42981796,2789.1,2788.6,0.07577231]
[1645896861707,1.42981796,2789.1,2788.7,1.15880464]
[1645896862207,1.42981796,2789.1,2788.7,1.45880464]
[1645896862409,1.43484867,2789.0,2788.7,1.45880464]
[1645896862607,1.42981796,2788.9,2788.7,1.45880464]
[1645896863458,0.00503081,2788.9,2788.8,0.07577006]
[1645896864458,1.42968228,2789.1,2788.8,0.07577006]
[1645896864658,1.43471304,2789.0,2788.8,0.97237006]
[1645896864857,1.42968228,2788.9,2788.8,1.516]
[1645896865059,1.42968228,2788.9,2788.8,1.59176876]
[1645896865957,0.00503076,2789.0,2788.8,1.59176876]
[1645896866160,1.42968228,2788.9,2788.8,1.0]
[1645896866626,1.42968228,2788.9,2788.7,1.15880464]
[1645896867020,0.67714255,2789.2,2788.7,1.15880464]
[1645896867224,0.00503076,2789.0,2788.7,1.15880464]
[1645896867420,0.45765217,2788.6,2788.5,5.16277491]
[1645896867620,1.88733445,2788.6,2788.5,5.5547796]
[1645896873162,1.88733445,2788.6,2788.5,6.5547796]
[1645896873566,1.88733445,2788.6,2788.5,6.6981796]
[1645896875108,1.88733445,2788.6,2788.5,7.5948496]
[1645896875509,1.88733445,2788.6,2788.5,1.60800469]
[1645896875714,2.89183445,2788.6,2788.5,0.09200469]
[1645896879666,2.89183445,2788.6,2788.2,3.59040215]
[1645896879866,1.42968228,2788.5,2788.3,0.0837142]
[1645896880065,1.46215217,2788.6,2788.3,0.0837142]
[1645896880066,1.42968228,2788.4,2788.3,0.0837142]
[1645896883424,1.42968228,2788.4,2788.1,0.0837142]
[1645896883623,1.42968228,2788.3,2788.1,1.877425]
[1645896883825,1.42968228,2788.2,2788.1,1.7937108]
[1645896884027,1.42968228,2788.2,2788.1,1.8752255]
[1645896884225,1.42968228,2788.2,2788.1,2.9355244]
[1645896885127,1.42968228,2788.2,2788.1,1.8752255]
[1645896885372,2.63468228,2788.2,2788.1,0.0815147]
[1645896885969,2.63468228,2788.2,2787.8,0.0815147]
[1645896886169,1.42968228,2788.1,2787.9,0.0815147]
[1645896886371,1.42968228,2788.0,2787.7,0.1434]
[1645896886572,1.42968228,2787.9,2787.8,0.08161805]
[1645896887574,1.5195,2788.2,2787.8,0.08161805]
[1645896887776,1.42133954,2787.9,2787.8,0.08161805]
[1645896887973,1.42145339,2788.1,2787.8,0.08161805]
[1645896888172,1.42146089,2788.0,2787.8,0.08161805]
[1645896888373,1.42146089,2787.9,2787.5,3.12018542]
[1645896888574,1.5195,2788.2,2787.6,0.08157547]
[1645896888774,1.42115243,2788.1,2787.6,1.36607456]
[1645896889013,1.42115243,2788.1,2787.7,0.08157547]
[1645896889313,1.42115243,2788.1,2787.8,0.07579417]
[1645896889314,3.5,2788.0,2787.8,0.07579417]
[1645896889510,1.42115243,2787.9,2787.3,0.00367183]
[1645896889715,3.5,2787.8,2787.3,0.07946924]
[1645896889909,1.42115243,2787.7,2787.3,0.07579741]
[1645896890312,1.42115243,2787.6,2787.4,1.19245452]
[1645896890509,1.42115243,2787.6,2787.5,0.07579741]
[1645896890510,0.9581,2787.6,2787.5,0.07579741]
[1645896890713,2.38874879,2787.6,2787.5,0.07579741]
[1645896891514,2.38763285,2787.6,2787.3,0.07579741]
[1645896891715,1.43009348,2787.5,2787.3,0.07579741]
[1645896891916,0.95698406,2787.6,2787.5,0.14300934]
[1645896892114,2.38731882,2787.6,2787.5,0.21880675]
[1645896892322,0.95698406,2787.6,2787.5,0.21880675]
[1645896892985,2.38691258,2787.6,2787.5,0.21880675]
[1645896894388,2.38691258,2787.6,2787.5,0.14300934]
[1645896896722,2.38691258,2787.6,2787.5,1.30889213]
[1645896896926,5.32374255,2788.1,2787.5,1.38468911]
[1645896896927,1.1466,2788.1,2787.5,1.38468911]
[1645896897119,1.42777565,2788.0,2787.6,0.07579698]
[1645896897523,1.42777565,2788.0,2787.5,0.14300934]
[1645896898123,4.91097042,2788.0,2787.5,0.14300934]
[1645896898322,13.17714255,2787.8,2787.5,9.34e-06]
[1645896898523,2.1049182,2787.7,2787.5,9.34e-06]
[1645896898723,3.5578182,2787.7,2787.5,9.34e-06]
[1645896899020,3.5578182,2787.7,2787.0,0.25]
[1645896899021,2.1049182,2787.6,2787.0,0.25]
[1645896899220,2.1049182,2787.6,2786.7,0.00367183]
[1645896899221,0.1429,2787.5,2786.7,0.00367183]
[1645896899520,1.42777565,2787.4,2786.7,0.00367183]
[1645896899718,1.72777565,2787.4,2786.6,1.0]
[1645896899921,1.57117565,2787.3,2786.6,1.0]
[1645896900305,1.42777565,2787.2,2786.7,0.00367183]
[1645896900487,1.42777565,2787.2,2786.6,1.0]
[1645896900687,3.5,2787.1,2786.1,0.00367183]
[1645896900889,1.42777565,2787.0,2786.1,0.07949486]
[1645896901091,3.5,2786.9,2786.1,0.07949486]
[1645896901285,1.42777565,2786.8,2786.1,0.07949486]
[1645896901497,3.5,2786.7,2786.1,0.07949486]
[1645896901693,1.42777565,2786.8,2786.1,0.07949486]
[1645896901694,0.2937,2786.8,2786.1,0.07949486]
[1645896902192,3.7689,2786.9,2786.1,0.07949486]
[1645896902193,3.5,2786.9,2786.1,0.07949486]
[1645896903201,1.375,2787.1,2786.4,1.05178756]
[1645896903202,0.1434,2787.1,2786.4,1.05178756]
[1645896903399,3.5,2787.3,2786.5,0.07582303]
[1645896903400,0.00502205,2787.3,2786.5,0.07582303]
[1645896904017,0.00502205,2787.3,2786.9,1.35282996]
[1645896904221,3.96516793,2787.6,2786.5,7.43949486]
[1645896904419,3.82236793,2787.6,2786.5,7.95182303]
[1645896904619,0.00502233,2787.3,2786.7,0.00502346]
[1645896904821,0.00502233,2787.3,2786.8,0.07582303]
[1645896905519,3.82236793,2787.6,2786.8,0.07582303]
[1645896905722,0.00502249,2787.3,2786.9,0.00502326]
[1645896906423,0.00502249,2787.3,2787.0,1.11721879]
[1645896906628,1.1761,2787.8,2787.0,1.11721879]
[1645896906830,1.44755047,2787.7,2787.1,0.59180218]
[1645896907024,1.1761,2787.8,2787.1,0.516]
[1645896907224,0.00470873,2787.3,2787.2,0.07579989]
[1645896907423,0.00470873,2787.3,2787.2,0.59179989]
[1645896907785,0.00470873,2787.3,2787.2,1.78893989]
[1645896907975,0.00470873,2787.3,2787.2,3.66666102]
[1645896908169,4.6522,2788.3,2787.2,2.84532144]
[1645896908370,1.44790128,2788.2,2787.7,1.30560733]
[1645896908569,1.44790128,2788.2,2787.4,0.516]
[1645896909370,0.0047082,2787.9,2787.4,0.516]
[1645896909572,1.44790128,2787.8,2787.4,0.516]
[1645896909772,0.0047082,2787.9,2787.4,1.81039838]
[1645896909974,1.46238221,2787.8,2787.4,1.81039838]
[1645896910680,0.00473814,2787.8,2787.4,1.81039838]
[1645896911073,0.00473814,2787.8,2787.4,1.79587438]
[1645896911521,1.1522,2788.3,2787.4,1.79587438]
[1645896911728,0.00473819,2787.7,2787.4,1.79587438]
[1645896912626,1.1522,2788.3,2787.4,1.79587438]
[1645896912827,1.46035646,2788.2,2787.4,1.79587438]
[1645896913029,0.00473824,2787.7,2787.4,1.79587438]
[1645896913427,0.00473824,2787.7,2787.4,0.501476]
[1645896913826,1.1522,2788.3,2787.4,0.501476]
[1645896914028,1.4607487,2788.2,2787.4,0.501476]
[1645896914228,0.004732,2787.7,2787.4,0.501476]
[1645896915029,1.1522,2788.3,2787.5,1.17837021]
[1645896915266,1.4612282,2788.2,2787.5,1.17837021]
[1645896915469,0.004732,2787.7,2787.5,1.17837021]
[1645896916671,0.00473195,2787.7,2787.5,1.17837021]
[1645896916872,0.00473195,2787.7,2787.2,1.81967183]
[1645896917071,0.00473195,2787.7,2787.3,0.07579933]
[1645896917471,1.1522,2788.3,2787.3,0.07579933]
[1645896917671,0.00473255,2787.6,2787.3,0.07579933]
[1645896918580,0.3582,2788.1,2787.1,1.0]
[1645896918772,1.46094135,2788.0,2787.2,0.07947644]
[1645896919062,1.46094135,2787.9,2787.2,0.00367183]
[1645896919259,1.46094135,2787.9,2787.1,0.07580559]
[1645896919462,1.46094135,2787.9,2787.1,0.07947742]
[1645896920059,1.46094135,2787.9,2787.1,1.07947742]
[1645896920263,1.46094135,2787.9,2787.2,0.07580559]
[1645896920459,1.46094135,2787.8,2787.2,0.07947742]
[1645896920660,1.46094135,2787.7,2787.2,0.07947742]
[1645896920860,1.46094135,2787.6,2787.2,0.07580559]
[1645896921061,1.82934255,2788.3,2787.3,0.07580559]
[1645896921266,1.46209899,2788.2,2787.4,0.07580559]
[1645896921462,0.00502727,2787.5,2787.1,0.00869996]
[1645896921664,0.00502727,2787.5,2787.2,0.07580293]
[1645896921864,0.00502727,2787.5,2787.0,2.51402592]
[1645896922366,0.67714255,2788.2,2787.0,2.51402592]
[1645896922572,2.33064255,2788.3,2787.1,0.00367183]
[1645896922799,1.82934255,2788.3,2787.5,1.40848608]
[1645896923791,1.82934255,2788.3,2787.2,1.79796523]
[1645896923986,1.82934255,2788.3,2787.2,2.31396523]
[1645896925386,1.82934255,2788.3,2787.4,1.44248472]
[1645896926186,0.00502682,2788.0,2787.4,1.44248472]
[1645896927220,1.82934255,2788.3,2787.4,1.44248472]
[1645896927615,0.00502697,2787.8,2787.4,1.44248472]
[1645896928418,1.82934255,2788.3,2787.4,1.32207444]
[1645896928821,0.00502707,2787.7,2787.4,1.32207444]
[1645896929429,0.00502707,2787.7,2787.5,0.516]
[1645896929621,1.1522,2788.3,2787.5,1.41305]
[1645896929820,1.1522,2788.3,2787.9,1.18846372]
[1645896930020,0.67714255,2788.5,2787.5,2.31009]
[1645896930869,0.67714255,2788.5,2787.6,0.89701]
[1645896931073,10.39076651,2788.6,2787.6,0.89701]
[1645896931074,0.00502667,2788.1,2787.9,1.02295412]
[1645896931274,0.00502667,2788.1,2787.9,2.19715412]
[1645896931475,0.00502667,2788.1,2787.9,13.10715412]
[1645896931678,0.00502667,2788.1,2788.0,12.2682]
[1645896931874,0.00502667,2788.1,2788.0,20.2577]
[1645896932072,0.46116651,2788.6,2788.2,1.25498]
[1645896932274,0.45765217,2788.6,2788.4,1.15170339]
[1645896932475,0.45765217,2788.6,2788.5,1.0]
[1645896936318,0.45765217,2788.6,2788.4,1.66770339]
[1645896936929,0.00351434,2788.9,2788.2,2.0]
[1645896937125,0.67714255,2789.0,2788.2,2.0]
[1645896937126,0.00478515,2788.6,2788.2,1.0]
[1645896938061,0.68065689,2788.9,2788.2,1.04771509]
[1645896938259,0.00502256,2788.5,2788.0,7.1735]
[1645896939262,0.67691347,2788.9,2788.0,8.217656]
[1645896939469,0.00502271,2788.4,2788.0,8.217656]
[1645896940463,0.00353279,2788.8,2788.0,8.217656]
[1645896940665,0.00502276,2788.3,2788.0,8.217656]
[1645896941169,0.00502276,2788.3,2788.0,7.1735]
[1645896941551,0.00502276,2788.3,2788.0,5.55671017]
[1645896941753,0.00353279,2788.7,2788.0,5.55671017]
[1645896941954,0.00502652,2788.3,2788.0,5.55671017]
[1645896942157,1.42888582,2788.2,2788.0,5.55671017]
[1645896942960,1.42888582,2788.1,2788.0,5.55671017]
[1645896943359,0.00502657,2788.2,2788.0,5.55671017]
[1645896943561,1.42888582,2788.1,2788.0,5.55671017]
[1645896944359,0.00502662,2788.2,2788.0,5.55671017]
[1645896944666,1.42888582,2788.1,2788.0,5.55671017]
[1645896945060,1.42888582,2788.1,2788.0,5.63249636]
[1645896946074,1.42888582,2788.1,2788.0,5.63249472]
[1645896946876,0.00502662,2788.2,2788.0,5.63249472]
[1645896947077,1.42888582,2788.1,2788.0,6.45360017]
[1645896947284,0.00502662,2788.2,2788.0,6.52938377]
[1645896947478,1.42888582,2788.1,2788.0,6.45360017]
[1645896947677,1.42888582,2788.1,2788.0,6.52938361]
[1645896947879,0.00502657,2788.2,2788.0,6.52938361]
[1645896948096,1.42888582,2788.1,2788.0,6.45360017]
[1645896948278,0.00502657,2788.2,2788.0,5.63249459]
[1645896948478,0.00502657,2788.2,2788.0,5.55671017]